fUSD/lending_fUSD_20250107
["ID","MTS","AMOUNT","RATE_DAILY","PERIOD"]
[347940350,1736228909563,-500.0,0.00010799,2]
[347940351,1736228909596,-5000.0,0.00010799,2]
[347940352,1736228909629,-500.0,0.00010799,2]
[347940353,1736228909660,-500.0,0.00010799,2]
[347940354,1736228909691,-501.78641158,0.00010799,2]
[347940355,1736228909721,-531.38,0.00010799,2]
[347940356,1736228909752,-515.86535961,0.00010799,2]
[347940357,1736228909782,-500.0,0.00010799,2]
[347940358,1736228909813,-500.0,0.00010799,2]
[347940359,1736228909842,-506.15772033,0.00010799,2]
[347940360,1736228909874,-500.0,0.00010799,2]
[347940361,1736228909904,-500.0,0.00010799,2]
[347940362,1736228909934,-500.0,0.00010799,2]
[347940363,1736228909965,-500.0,0.00010799,2]
[347940364,1736228909996,-505.92971405,0.00010799,2]
[347940365,1736228910026,-505.78030968,0.00010799,2]
[347940366,1736228910056,-500.0,0.00010799,2]
[347940367,1736228910086,-509.86955319,0.00010799,2]
[347940368,1736228910116,-500.0,0.00010799,2]
[347940369,1736228910146,-500.0,0.00010799,2]
[347940370,1736228910176,-506.41603155,0.00010799,2]
[347940371,1736228910206,-503.19638266,0.00010799,2]
[347940372,1736228910236,-500.32260009,0.00010799,2]
[347940373,1736228910267,-588.55853965,0.00010799,2]
[347940374,1736228910299,-500.0,0.00010799,2]
[347940375,1736228910331,-523.26784027,0.00010799,2]
[347940376,1736228910364,-500.0,0.00010799,2]
[347940377,1736228910397,-500.0,0.00010799,2]
[347940378,1736228910428,-500.0,0.00010799,2]
[347940379,1736228910459,-500.0,0.00010799,2]
[347940380,1736228910489,-500.0,0.00010799,2]
[347940381,1736228910519,-500.0,0.00010799,2]
[347940382,1736228910549,-501.08166663,0.00010799,2]
[347940383,1736228910582,-259.91324336,0.00010799,2]
[347940384,1736228910613,-500.0,0.00010799,2]
[347940385,1736228910644,-500.0,0.00010799,2]
[347940386,1736228910684,-500.0,0.00010799,2]
[347940387,1736228910719,-500.0,0.00010799,2]
[347940388,1736228910748,-501.61934249,0.00010799,2]
[347940389,1736228910779,-500.0,0.00010799,2]
[347940390,1736228910809,-500.0,0.00010799,2]
[347940391,1736228910840,-500.0,0.00010799,2]
[347940392,1736228910873,-513.43,0.00010799,2]
[347940393,1736228910906,-500.0,0.00010799,2]
[347940394,1736228910936,-500.0,0.00010799,2]
[347940395,1736228910968,-500.0,0.00010799,2]
[347940396,1736228910999,-101120.30957,0.000108,2]
[347940397,1736228911030,-151.0,0.000108,2]
[347940398,1736228911060,-986.67093332,0.00010839,2]
[347940399,1736228911096,-151.0,0.00010849,2]
[347940400,1736228911127,-125406.0,0.00010849,2]
[347940401,1736228911160,-986.67093332,0.0001087,2]
[347940402,1736228911190,-162.14279174,0.00010873,2]
[347940403,1736228911221,-151.436802,0.00010873,2]
[347940404,1736228911251,-500.0,0.00010877,2]
[347940405,1736228911281,-259.71795456,0.00010878,2]
[347940406,1736228911311,-500.0,0.00010878,2]
[347940407,1736228911343,-501.67383313,0.00010878,2]
[347940408,1736228911377,-502.13915873,0.00010878,2]
[347940409,1736228911412,-538.3788573,0.00010878,2]
[347940410,1736228911447,-501.45288796,0.00010878,2]
[347940411,1736228911481,-501.76701012,0.00010878,2]
[347940412,1736228911511,-500.35960262,0.00010878,2]
[347940413,1736228911544,-259.00110942,0.00010878,2]
[347940414,1736228911577,-500.0,0.00010878,2]
[347940415,1736228911610,-501.70798032,0.00010878,2]
[347940416,1736228911641,-500.0,0.00010878,2]
[347940417,1736228911672,-503.24468143,0.00010878,2]
[347940418,1736228911703,-502.59763457,0.00010878,2]
[347940419,1736228911733,-500.0,0.00010878,2]
[347940420,1736228911764,-501.46286482,0.00010878,2]
[347940421,1736228911794,-500.96049419,0.00010878,2]
[347940422,1736228911828,-500.00486698,0.00010878,2]
[347940423,1736228911860,-531.28712878,0.00010878,2]
[347940424,1736228911891,-504.68442032,0.00010878,2]
[347940425,1736228911923,-532.45280973,0.00010878,2]
[347940426,1736228911953,-500.0,0.00010878,2]
[347940427,1736228911985,-500.0,0.00010878,2]
[347940428,1736228912016,-500.0,0.00010878,2]
[347940429,1736228912046,-500.0,0.00010878,2]
[347940430,1736228912076,-500.0,0.00010878,2]
[347940431,1736228912109,-2414.61,0.00010878,2]
[347940432,1736228912141,-500.0,0.00010878,2]
[347940433,1736228912174,-535.75,0.00010878,2]
[347940434,1736228912206,-500.0,0.00010878,2]
[347940435,1736228912239,-575.81793392,0.00010878,2]
[347940436,1736228912273,-2000.94,0.00010878,2]
[347940437,1736228912308,-500.0,0.00010878,2]
[347940438,1736228912347,-500.0,0.00010878,2]
[347940439,1736228912668,-500.0,0.00010878,2]
[347940440,1736228912703,-500.0,0.00010878,2]
[347940441,1736228912737,-500.0,0.00010878,2]
[347940442,1736228912770,-500.0,0.00010878,2]
[347940443,1736228912803,-500.0,0.00010878,2]
[347940444,1736228912835,-614.57,0.00010878,2]
[347940445,1736228912865,-500.0,0.00010878,2]
[347940446,1736228912896,-500.0,0.00010879,2]
[347940447,1736228912928,-500.0,0.00010879,2]
[347940448,1736228912959,-500.62593596,0.00010879,2]
[347940449,1736228912988,-500.0,0.00010879,2]
[347940450,1736228913020,-500.0,0.00010879,2]
[347940451,1736228913057,-502.54700843,0.00010879,2]
[347940452,1736228913099,-546.22,0.00010879,2]
[347940453,1736228913134,-220.0,0.00010879,2]
[347940454,1736228913168,-500.0,0.00010879,2]
[347940455,1736228913203,-500.0,0.00010879,2]
[347940456,1736228913238,-500.0,0.00010879,2]
[347940457,1736228913273,-500.0,0.00010879,2]
[347940458,1736228913308,-2414.61,0.00010879,2]
[347940459,1736228913343,-2414.61,0.00010879,2]
[347940460,1736228913379,-2414.61,0.00010879,2]
[347940461,1736228913414,-2414.61,0.00010879,2]
[347940462,1736228913448,-2414.61,0.00010879,2]
[347940463,1736228913482,-2414.61,0.00010879,2]
[347940464,1736228913517,-2414.61,0.00010879,2]
[347940465,1736228913550,-2414.61,0.00010879,2]
[347940466,1736228913585,-2414.61,0.00010879,2]
[347940467,1736228913623,-2414.61,0.00010879,2]
[347940468,1736228913659,-2414.61,0.00010879,2]
[347940469,1736228913693,-2414.61,0.00010879,2]
[347940470,1736228913727,-2414.61,0.00010879,2]
[347940471,1736228913760,-2414.61,0.00010879,2]
[347940472,1736228913794,-535.75,0.00010879,2]
[347940473,1736228913828,-535.75,0.00010879,2]
[347940474,1736228913862,-535.75,0.00010879,2]
[347940475,1736228913897,-535.75,0.00010879,2]
[347940476,1736228913930,-535.75,0.00010879,2]
[347940477,1736228913964,-535.75,0.00010879,2]
[347940478,1736228913999,-535.75,0.00010879,2]
[347940479,1736228914034,-535.75,0.00010879,2]
[347940480,1736228914067,-535.75,0.00010879,2]
[347940481,1736228914103,-535.75,0.00010879,2]
[347940482,1736228914139,-535.75,0.00010879,2]
[347940483,1736228914173,-535.75,0.00010879,2]
[347940484,1736228914209,-535.75,0.00010879,2]
[347940485,1736228914243,-535.75,0.00010879,2]
[347940486,1736228914277,-535.75,0.00010879,2]
[347940487,1736228914310,-500.0,0.00010879,2]
[347940488,1736228914345,-500.0,0.00010879,2]
[347940489,1736228914380,-500.0,0.00010879,2]
[347940490,1736228914416,-500.0,0.00010879,2]
[347940491,1736228914449,-154.36322553,0.00010879,2]
[347940492,1736228914482,-500.0,0.00010879,2]
[347940493,1736228914515,-500.0,0.00010879,2]
[347940494,1736228914551,-599.37054097,0.00010879,2]
[347940495,1736228914586,-1312070.11318856,0.0001088,2]
[347940511,1736229031866,-0.19225393,8.219e-05,2]
[347940512,1736229031895,-499.80774607,8.219e-05,2]
[347940513,1736229031904,-500.0,8.219e-05,2]
[347940514,1736229031914,-70.89225393,8.219e-05,2]
[347940515,1736229031955,-429.10774607,8.219e-05,2]
[347940516,1736229031965,-500.0,8.219e-05,2]
[347940517,1736229031974,-500.0,8.219e-05,2]
[347940518,1736229031984,-500.0,8.219e-05,2]
[347940519,1736229031994,-500.0,8.219e-05,2]
[347940520,1736229032004,-500.0,8.219e-05,2]
[347940521,1736229032013,-500.0,8.219e-05,2]
[347940522,1736229032022,-500.0,8.219e-05,2]
[347940523,1736229032032,-500.0,8.219e-05,2]
[347940524,1736229032042,-500.0,8.219e-05,2]
[347940525,1736229032051,-326.36028665,8.219e-05,2]
[347940526,1736229032062,-209.60575429,8.219e-05,2]
[347940527,1736229032072,-500.0,8.219e-05,2]
[347940528,1736229032082,-500.0,8.219e-05,2]
[347940529,1736229032091,-638.60568308,8.219e-05,2]
[347940530,1736229032100,-500.0,8.219e-05,2]
[347940531,1736229032110,-500.0,8.219e-05,2]
[347940532,1736229032119,-500.0,8.219e-05,2]
[347940533,1736229032129,-500.0,8.219e-05,2]
[347940534,1736229032138,-500.0,8.219e-05,2]
[347940535,1736229032148,-500.0,8.219e-05,2]
[347940536,1736229032158,-5988.07363313,8.219e-05,2]
[347940537,1736229032192,-1000.0,8.219e-05,2]
[347940538,1736229032204,-2524.37133112,8.219e-05,2]
[347940539,1736229032213,-500.0,8.219e-05,2]
[347940540,1736229032223,-554.6,8.219e-05,2]
[347940541,1736229032232,-611.03,8.219e-05,2]
[347940542,1736229032241,-446.68840048,8.219e-05,2]
[347940543,1736229032250,-500.0,8.219e-05,2]
[347940544,1736229032259,-500.0,8.219e-05,2]
[347940545,1736229032268,-500.0,8.219e-05,2]
[347940546,1736229032277,-500.0,8.219e-05,2]
[347940547,1736229032286,-500.0,8.219e-05,2]
[347940548,1736229032295,-500.0,8.219e-05,2]
[347940549,1736229032304,-500.0,8.219e-05,2]
[347940550,1736229032314,-500.0,8.219e-05,2]
[347940551,1736229032323,-500.0,8.219e-05,2]
[347940552,1736229032332,-576.02,8.219e-05,2]
[347940553,1736229032342,-384.77116115,8.219e-05,2]
[347940554,1736229032357,-500.0,8.219e-05,2]
[347940555,1736229032366,-500.0,8.219e-05,2]
[347940556,1736229032376,-528.48600038,8.493e-05,2]
[347940557,1736229032387,-500.0,8.493e-05,2]
[347940558,1736229032397,-500.0,8.493e-05,2]
[347940559,1736229032406,-500.0,8.493e-05,2]
[347940560,1736229032416,-500.0,8.493e-05,2]
[347940561,1736229032428,-500.0,8.493e-05,2]
[347940562,1736229032437,-582.25355598,8.493e-05,2]
[347940563,1736229032449,-489.08281801,8.493e-05,2]
[347940564,1736229032458,-500.0,8.493e-05,2]
[347940565,1736229032468,-500.0,8.493e-05,2]
[347940567,1736229032477,-500.0,8.493e-05,2]
[347940569,1736229032487,-200.76713559,8.493e-05,2]
[347940571,1736229032496,-554.6,8.493e-05,2]
[347940573,1736229032506,-151.16618577,8.493e-05,2]
[347940575,1736229032516,-500.0,8.493e-05,2]
[347940577,1736229032525,-179.55916,8.493e-05,2]
[347940579,1736229032534,-500.0,8.493e-05,2]
[347940581,1736229032544,-500.0,8.493e-05,2]
[347940594,1736229032692,-284.87441653,8.493e-05,2]
[347940595,1736229032703,-500.0,8.493e-05,2]
[347940596,1736229032713,-500.0,8.493e-05,2]
[347940597,1736229032723,-500.0,8.493e-05,2]
[347940598,1736229032732,-705.08,8.499e-05,2]
[347940599,1736229032742,-452.50513733,8.499e-05,2]
[347940600,1736229032751,-500.0,8.499e-05,2]
[347940601,1736229032761,-804.87,8.499e-05,2]
[347940602,1736229032771,-804.87,8.499e-05,2]
[347940603,1736229032781,-804.87,8.499e-05,2]
[347940604,1736229032791,-804.87,8.499e-05,2]
[347940605,1736229032800,-500.0,8.499e-05,2]
[347940606,1736229032809,-500.0,8.499e-05,2]
[347940607,1736229032819,-500.0,8.499e-05,2]
[347940608,1736229032828,-500.0,8.499e-05,2]
[347940609,1736229032837,-500.0,8.499e-05,2]
[347940610,1736229032847,-500.0,8.499e-05,2]
[347940611,1736229032856,-500.0,8.499e-05,2]
[347940612,1736229032865,-500.0,8.499e-05,2]
[347940613,1736229032874,-500.0,8.499e-05,2]
[347940614,1736229032885,-410.38374135,8.499e-05,2]
[347940615,1736229032894,-500.0,8.499e-05,2]
[347940616,1736229032904,-500.0,8.499e-05,2]
[347940617,1736229032913,-500.0,8.499e-05,2]
[347940618,1736229032923,-500.0,8.499e-05,2]
[347940619,1736229032932,-500.0,8.499e-05,2]
[347940620,1736229032943,-582.33754126,8.499e-05,2]
[347940621,1736229032952,-500.0,8.499e-05,2]
[347940622,1736229032962,-500.0,8.499e-05,2]
[347940623,1736229032971,-500.0,8.499e-05,2]
[347940624,1736229032980,-500.0,8.499e-05,2]
[347940625,1736229032990,-500.0,8.499e-05,2]
[347940626,1736229033002,-500.0,8.499e-05,2]
[347940627,1736229033013,-500.0,8.499e-05,2]
[347940628,1736229033023,-500.0,8.499e-05,2]
[347940629,1736229033033,-500.0,8.499e-05,2]
[347940630,1736229033043,-500.0,8.499e-05,2]
[347940631,1736229033052,-500.0,8.499e-05,2]
[347940632,1736229033061,-500.0,8.499e-05,2]
[347940633,1736229033071,-447.00858309,8.499e-05,2]
[347940634,1736229033100,-52.99141691,8.499e-05,2]
[347940635,1736229033109,-500.0,8.499e-05,2]
[347940636,1736229033119,-500.0,8.767e-05,2]
[347940637,1736229033128,-269.22887888,8.767e-05,2]
[347940638,1736229033166,-230.77112112,8.767e-05,2]
[347940639,1736229033175,-500.0,8.767e-05,2]
[347940640,1736229033186,-500.0,8.767e-05,2]
[347940641,1736229033196,-500.0,8.767e-05,2]
[347940642,1736229033206,-500.0,8.767e-05,2]
[347940643,1736229033216,-500.0,8.767e-05,2]
[347940644,1736229033225,-158.54859913,8.767e-05,2]
[347940645,1736229033235,-554.6,8.767e-05,2]
[347940646,1736229033245,-563.64,8.767e-05,2]
[347940647,1736229033254,-500.0,8.767e-05,2]
[347940648,1736229033263,-500.0,8.767e-05,2]
[347940649,1736229033273,-339.52,8.767e-05,2]
[347940650,1736229033283,-500.0,8.767e-05,2]
[347940651,1736229033292,-705.08,8.773e-05,2]
[347940652,1736229033302,-98.48715614,8.773e-05,2]
[347940763,1736229054442,-401.51284386,8.773e-05,2]
[347940764,1736229054452,-500.0,8.773e-05,2]
[347940765,1736229054462,-500.0,8.773e-05,2]
[347940766,1736229054471,-500.0,8.773e-05,2]
[347940767,1736229054481,-500.0,8.773e-05,2]
[347940768,1736229054491,-500.0,8.773e-05,2]
[347940769,1736229054500,-500.0,8.773e-05,2]
[347940770,1736229054510,-500.0,8.773e-05,2]
[347940771,1736229054519,-500.0,8.773e-05,2]
[347940772,1736229054529,-500.0,8.773e-05,2]
[347940773,1736229054539,-500.0,8.773e-05,2]
[347940774,1736229054548,-500.0,8.773e-05,2]
[347940775,1736229054557,-500.0,8.773e-05,2]
[347940776,1736229054567,-500.0,8.773e-05,2]
[347940777,1736229054578,-537.08763258,8.773e-05,2]
[347940778,1736229054588,-500.0,8.773e-05,2]
[347940779,1736229054598,-500.0,8.773e-05,2]
[347940780,1736229054608,-500.0,8.773e-05,2]
[347940781,1736229054618,-500.0,8.773e-05,2]
[347940782,1736229054628,-500.0,8.773e-05,2]
[347940783,1736229054638,-500.0,8.773e-05,2]
[347940784,1736229054647,-500.0,8.773e-05,2]
[347940785,1736229054657,-500.0,8.773e-05,2]
[347940786,1736229054667,-500.0,8.773e-05,2]
[347940787,1736229054676,-500.0,8.773e-05,2]
[347940788,1736229054686,-500.0,8.773e-05,2]
[347940789,1736229054696,-500.0,8.773e-05,2]
[347940790,1736229054705,-500.0,8.773e-05,2]
[347940791,1736229054715,-198.93,9.041e-05,2]
[347940792,1736229054725,-500.0,9.041e-05,2]
[347940793,1736229054735,-500.0,9.041e-05,2]
[347940794,1736229054744,-303.23029969,9.041e-05,2]
[347940795,1736229054754,-433.9167897,9.041e-05,2]
[347940796,1736229054764,-560.76,9.041e-05,2]
[347940797,1736229054774,-500.0,9.041e-05,2]
[347940798,1736229054783,-554.6,9.041e-05,2]
[347940799,1736229054792,-500.0,9.041e-05,2]
[347940800,1736229054802,-500.0,9.041e-05,2]
[347940801,1736229054811,-210.6,9.041e-05,2]
[347940802,1736229054821,-705.08,9.047e-05,2]
[347940803,1736229054831,-500.0,9.047e-05,2]
[347940804,1736229054840,-500.0,9.047e-05,2]
[347940805,1736229054849,-500.0,9.047e-05,2]
[347940806,1736229054859,-500.0,9.047e-05,2]
[347940807,1736229054869,-500.0,9.047e-05,2]
[347940808,1736229054878,-500.0,9.047e-05,2]
[347940809,1736229054888,-500.0,9.047e-05,2]
[347940810,1736229054897,-500.0,9.047e-05,2]
[347940811,1736229054907,-500.0,9.047e-05,2]
[347940812,1736229054916,-500.0,9.047e-05,2]
[347940813,1736229054926,-500.0,9.047e-05,2]
[347940814,1736229054935,-500.0,9.047e-05,2]
[347940815,1736229054945,-543.82508164,9.047e-05,2]
[347940816,1736229054955,-500.0,9.047e-05,2]
[347940817,1736229055097,-500.0,9.047e-05,2]
[347940818,1736229055118,-500.0,9.047e-05,2]
[347940819,1736229055127,-500.0,9.047e-05,2]
[347940820,1736229055136,-500.0,9.047e-05,2]
[347940821,1736229055145,-500.0,9.047e-05,2]
[347940822,1736229055155,-500.0,9.047e-05,2]
[347940823,1736229055164,-500.0,9.047e-05,2]
[347940824,1736229055174,-500.0,9.047e-05,2]
[347940825,1736229055183,-500.0,9.047e-05,2]
[347940826,1736229055193,-500.0,9.047e-05,2]
[347940827,1736229055202,-500.0,9.047e-05,2]
[347940828,1736229055212,-500.0,9.047e-05,2]
[347940829,1736229055221,-500.0,9.047e-05,2]
[347940830,1736229055231,-500.0,9.315e-05,2]
[347940831,1736229055240,-616.88,9.315e-05,2]
[347940832,1736229055249,-554.6,9.315e-05,2]
[347940833,1736229055258,-395.23234558,9.315e-05,2]
[347940834,1736229055267,-506.98982684,9.315e-05,2]
[347940835,1736229055277,-705.08,9.321e-05,2]
[347940836,1736229055286,-500.0,9.321e-05,2]
[347940837,1736229055295,-500.0,9.321e-05,2]
[347940838,1736229055304,-500.0,9.321e-05,2]
[347940839,1736229055314,-500.0,9.321e-05,2]
[347940840,1736229055323,-500.0,9.321e-05,2]
[347940841,1736229055332,-500.0,9.321e-05,2]
[347940842,1736229055342,-185.87693313,9.321e-05,2]
[347940843,1736229055351,-500.0,9.321e-05,2]
[347940844,1736229055364,-500.0,9.321e-05,2]
[347940845,1736229055373,-500.0,9.321e-05,2]
[347940846,1736229055382,-500.0,9.321e-05,2]
[347940847,1736229055392,-500.0,9.321e-05,2]
[347940848,1736229055402,-500.0,9.321e-05,2]
[347940849,1736229055412,-500.0,9.321e-05,2]
[347940850,1736229055421,-500.0,9.321e-05,2]
[347940851,1736229055432,-500.0,9.321e-05,2]
[347940852,1736229055441,-500.0,9.321e-05,2]
[347940853,1736229055451,-500.0,9.321e-05,2]
[347940854,1736229055461,-500.0,9.321e-05,2]
[347940855,1736229055471,-500.0,9.321e-05,2]
[347940856,1736229055480,-500.0,9.321e-05,2]
[347940857,1736229055489,-500.0,9.321e-05,2]
[347940858,1736229055498,-500.0,9.321e-05,2]
[347940859,1736229055508,-500.0,9.321e-05,2]
[347940860,1736229055517,-500.0,9.321e-05,2]
[347940861,1736229055526,-500.0,9.321e-05,2]
[347940862,1736229055536,-23900.0,9.484e-05,2]
[347940863,1736229055546,-554.6,9.589e-05,2]
[347940864,1736229055555,-705.08,9.595e-05,2]
[347940865,1736229055565,-500.0,9.595e-05,2]
[347940866,1736229055574,-151.0,9.595e-05,2]
[347940867,1736229055583,-632.46679895,9.595e-05,2]
[347940868,1736229055593,-500.0,9.595e-05,2]
[347940869,1736229055604,-500.0,9.595e-05,2]
[347940870,1736229055614,-500.0,9.595e-05,2]
[347940871,1736229055623,-500.0,9.595e-05,2]
[347940872,1736229055632,-500.0,9.595e-05,2]
[347940873,1736229055642,-500.0,9.595e-05,2]
[347940874,1736229055651,-500.0,9.595e-05,2]
[347940875,1736229055660,-500.0,9.595e-05,2]
[347940876,1736229055669,-500.0,9.595e-05,2]
[347940877,1736229055679,-500.0,9.595e-05,2]
[347940878,1736229055688,-500.0,9.595e-05,2]
[347940879,1736229055697,-500.0,9.595e-05,2]
[347940880,1736229055706,-500.0,9.595e-05,2]
[347940881,1736229055715,-500.0,9.595e-05,2]
[347940882,1736229055724,-500.0,9.595e-05,2]
[347940883,1736229055734,-500.0,9.595e-05,2]
[347940884,1736229055743,-500.0,9.595e-05,2]
[347940885,1736229055752,-500.0,9.595e-05,2]
[347940886,1736229055761,-500.0,9.595e-05,2]
[347940887,1736229055771,-500.0,9.595e-05,2]
[347940888,1736229055780,-500.0,9.595e-05,2]
[347940889,1736229055789,-500.0,9.595e-05,2]
[347940890,1736229055798,-471.70629675,9.595e-05,2]
[347940891,1736229055807,-554.6,9.863e-05,2]
[347940892,1736229055816,-705.08,9.869e-05,2]
[347940893,1736229055826,-639.36,9.869e-05,2]
[347940894,1736229055835,-500.0,9.869e-05,2]
[347940895,1736229055844,-500.0,9.869e-05,2]
[347940896,1736229055853,-500.0,9.869e-05,2]
[347940897,1736229055862,-500.0,9.869e-05,2]
[347940898,1736229055871,-579.09366687,9.869e-05,2]
[347940899,1736229055880,-500.0,9.869e-05,2]
[347940900,1736229055889,-500.0,9.869e-05,2]
[347940901,1736229055898,-500.0,9.869e-05,2]
[347940902,1736229055907,-500.0,9.869e-05,2]
[347940903,1736229055917,-500.0,9.869e-05,2]
[347940904,1736229055926,-500.0,9.869e-05,2]
[347940905,1736229055935,-500.0,9.869e-05,2]
[347940906,1736229055944,-500.0,9.869e-05,2]
[347940907,1736229055954,-500.0,9.869e-05,2]
[347940908,1736229055964,-500.0,9.869e-05,2]
[347940909,1736229055973,-500.0,9.869e-05,2]
[347940910,1736229055982,-500.0,9.869e-05,2]
[347940911,1736229055991,-500.0,9.869e-05,2]
[347940912,1736229056000,-500.0,9.869e-05,2]
[347940913,1736229056009,-500.0,9.869e-05,2]
[347940914,1736229056018,-500.0,9.869e-05,2]
[347940915,1736229056027,-500.0,9.869e-05,2]
[347940916,1736229056037,-1527.50667318,9.969e-05,2]
[347940917,1736229056047,-804.87,9.999e-05,2]
[347940918,1736229056056,-153.882296,9.999e-05,2]
[347940919,1736229056066,-3400.0,0.0001,3]
[347940920,1736229056075,-251.018806,0.0001,2]
[347940921,1736229056084,-1527.50667325,0.0001,2]
[347940922,1736229056093,-1527.50667318,0.0001,2]
[347940923,1736229056103,-1527.50667318,0.0001,2]
[347940924,1736229056113,-1527.50667318,0.0001,2]
[347940925,1736229056123,-1527.50667318,0.00010086,2]
[347940926,1736229056132,-554.6,0.00010136,2]
[347940927,1736229056142,-705.08,0.00010143,2]
[347940928,1736229056151,-500.0,0.00010143,2]
[347940929,1736229056161,-500.0,0.00010143,2]
[347940930,1736229056171,-500.0,0.00010143,2]
[347940931,1736229056180,-500.0,0.00010143,2]
[347940932,1736229056189,-500.0,0.00010143,2]
[347940933,1736229056198,-500.0,0.00010143,2]
[347940934,1736229056207,-500.0,0.00010143,2]
[347940935,1736229056217,-500.0,0.00010143,2]
[347940936,1736229056227,-500.0,0.00010143,2]
[347940937,1736229056236,-500.0,0.00010143,2]
[347940938,1736229056245,-500.0,0.00010143,2]
[347940939,1736229056255,-500.0,0.00010143,2]
[347940940,1736229056264,-366.87961928,0.00010143,2]
[347940941,1736229056274,-500.0,0.00010143,2]
[347940942,1736229056284,-500.0,0.00010143,2]
[347940943,1736229056294,-500.0,0.00010143,2]
[347940944,1736229056303,-500.0,0.00010143,2]
[347940945,1736229056313,-500.0,0.00010143,2]
[347940946,1736229056322,-500.0,0.00010143,2]
[347940947,1736229056332,-500.0,0.00010143,2]
[347940948,1736229056341,-152.36,0.00010143,2]
[347940949,1736229056350,-1527.50667318,0.00010203,2]
[347940950,1736229056362,-153.882296,0.00010297,2]
[347940951,1736229056372,-153.882296,0.00010298,2]
[347940952,1736229056382,-153.882296,0.00010299,2]
[347940953,1736229056391,-1527.50667318,0.00010321,2]
[347940954,1736229056403,-153.882296,0.00010346,2]
[347940955,1736229056413,-554.6,0.0001041,2]
[347940956,1736229056423,-1660.03,0.00010417,2]
[347940957,1736229056433,-705.08,0.00010417,2]
[347940958,1736229056443,-500.0,0.00010417,2]
[347940959,1736229056454,-500.0,0.00010417,2]
[347940960,1736229056465,-507.64836877,0.00010417,2]
[347940961,1736229056476,-500.0,0.00010417,2]
[347940962,1736229056485,-429.7123685,0.00010417,2]
[347940963,1736229056494,-500.0,0.00010417,2]
[347940964,1736229056504,-500.0,0.00010417,2]
[347940965,1736229056514,-500.0,0.00010417,2]
[347940966,1736229056524,-500.0,0.00010417,2]
[347940967,1736229056533,-500.0,0.00010417,2]
[347940968,1736229056542,-500.0,0.00010417,2]
[347940969,1736229056551,-500.0,0.00010417,2]
[347940970,1736229056560,-500.0,0.00010417,2]
[347940971,1736229056570,-500.0,0.00010417,2]
[347940972,1736229056580,-500.0,0.00010417,2]
[347940973,1736229056591,-500.0,0.00010417,2]
[347940974,1736229056600,-500.0,0.00010417,2]
[347940975,1736229056610,-500.0,0.00010417,2]
[347940976,1736229056620,-500.0,0.00010417,2]
[347940977,1736229056629,-1527.50667318,0.00010438,2]
[347940978,1736229056638,-153.882296,0.00010547,2]
[347940979,1736229056648,-1527.50667318,0.00010555,2]
[347940980,1736229056658,-153.882296,0.00010572,2]
[347940981,1736229056667,-153.882296,0.00010572,2]
[347940982,1736229056676,-153.882296,0.0001062,2]
[347940983,1736229056685,-1527.50667318,0.00010672,2]
[347940984,1736229056695,-554.6,0.00010684,2]
[347940985,1736229056704,-1660.03,0.00010691,2]
[347940986,1736229056713,-705.08,0.00010691,2]
[347940987,1736229056724,-500.0,0.00010691,2]
[347940988,1736229056733,-500.0,0.00010691,2]
[347940989,1736229056743,-500.0,0.00010691,2]
[347940990,1736229056752,-500.0,0.00010691,2]
[347940991,1736229056761,-500.0,0.00010691,2]
[347940992,1736229056770,-500.0,0.00010691,2]
[347940993,1736229056780,-500.0,0.00010691,2]
[347940994,1736229056790,-500.0,0.00010691,2]